bitfinex/quotes_SOLUSD_20250721
["timestamp","ask_amount","ask_price","bid_price","bid_amount"]
[1753139617542,1.29603521,196.53,196.5,26.0]
[1753139618472,0.63603521,196.53,196.5,26.0]
[1753139618844,0.63603521,196.53,196.5,26.71]
[1753139619158,5.59021727,196.54,196.48,5.59021727]
[1753139619159,6.22622011,196.54,196.48,5.59021727]
[1753139619362,5.59021727,196.5,196.46,0.03]
[1753139619747,6.25021727,196.5,196.46,0.03]
[1753139620068,1.29616469,196.49,196.46,0.03]
[1753139620741,6.88638196,196.49,196.46,0.03]
[1753139620947,1.29616469,196.49,196.46,0.03]
[1753139622262,0.66,196.48,196.46,0.03]
[1753139622566,6.22644671,196.47,196.46,0.03]
[1753139622949,6.88644671,196.47,196.46,0.03]
[1753139623494,11.9762823,196.47,196.46,0.03]
[1753139624167,6.88644671,196.47,196.46,0.03]
[1753139627360,11.9762823,196.47,196.46,0.03]
[1753139629569,6.88644671,196.47,196.46,0.03]
[1753139632072,11.9762823,196.47,196.46,0.03]
[1753139637682,28.76096627,196.47,196.46,0.03]
[1753139641158,11.9762823,196.47,196.46,0.03]
[1753139642460,0.63622944,196.47,196.46,0.03]
[1753139642782,0.69606757,196.52,196.46,6.33021727]
[1753139642964,0.69606757,196.52,196.51,5.59021727]
[1753139642965,0.06,196.52,196.51,5.59021727]
[1753139643281,0.06,196.56,196.52,1.5926]
[1753139643575,0.06,196.56,196.53,5.59021727]
[1753139643778,0.06,196.56,196.54,5.59021727]
[1753139644273,0.06,196.56,196.55,0.71]
[1753139644652,0.06,196.56,196.55,26.71]
[1753139645283,0.72,196.56,196.52,1.5926]
[1753139645463,5.65021727,196.56,196.52,1.5926]
[1753139645662,6.22618776,196.55,196.52,2.3026]
[1753139646166,5.65021727,196.56,196.52,1.5926]
[1753139646367,5.65021727,196.56,196.53,0.71]
[1753139646669,5.65021727,196.56,196.54,0.71]
[1753139647059,6.22618776,196.55,196.52,2.3026]
[1753139647960,0.63597049,196.55,196.52,2.3026]
[1753139648271,6.2861554,196.56,196.53,0.7]
[1753139649278,6.2861554,196.56,196.52,1.5926]
[1753139649475,6.2861554,196.56,196.52,2.2926]
[1753139652181,5.59021727,196.55,196.5,26.7]
[1753139652369,0.63600284,196.54,196.5,31.78903502]
[1753139652566,0.63600284,196.54,196.51,0.7]
[1753139654874,6.22618776,196.55,196.51,5.78877741]
[1753139655085,6.22618776,196.55,196.52,0.7]
[1753139655784,5.59021727,196.55,196.52,0.7]
[1753139656688,1.36593813,196.56,196.52,0.7]
[1753139656689,0.06,196.56,196.53,6.29021727]
[1753139656886,0.06,196.56,196.54,6.29021727]
[1753139657263,0.06,196.56,196.55,0.7]
[1753139659989,0.06,196.56,196.54,5.08797119]
[1753139660168,0.06,196.56,196.54,5.78797119]
[1753139660871,0.06,196.56,196.55,0.7]
[1753139661480,0.06,196.56,196.55,6.29021727]
[1753139662077,0.06,196.56,196.55,0.7]
[1753139662782,0.06,196.56,196.55,5.78776392]
[1753139666595,0.06,196.56,196.55,11.37798119]
[1753139671598,0.06,196.56,196.55,65.33746516]
[1753139671895,0.06,196.6,196.58,26.0]
[1753139672190,0.06,196.6,196.59,41.44457799]
[1753139672786,0.06,196.6,196.59,42.14457799]
[1753139672993,0.06,196.6,196.59,47.23130671]
[1753139677105,0.06,196.6,196.59,64.01599068]
[1753139678510,1e-08,196.6,196.59,69.60620795]
[1753139681594,1e-08,196.6,196.59,34.00620795]
[1753139681790,1e-08,196.6,196.59,69.58620795]
[1753139688908,1e-08,196.6,196.59,63.99599068]
[1753139689215,1e-08,196.6,196.59,10.93130671]
[1753139689390,1e-08,196.6,196.59,46.51130671]
[1753139689983,1e-08,196.6,196.59,40.92108944]
[1753139690185,1e-08,196.6,196.59,46.51130671]
[1753139692114,0.65000001,196.6,196.59,46.51130671]
[1753139694503,0.65000001,196.6,196.58,5.08697084]
[1753139694805,0.65000001,196.6,196.59,26.0]
[1753139695019,6.24021728,196.6,196.59,26.0]
[1753139695327,6.24021728,196.6,196.56,0.03]
[1753139695623,6.87605836,196.59,196.56,0.03]
[1753139695831,0.65,196.59,196.56,10.70752567]
[1753139696316,1e-08,196.6,196.57,31.59021727]
[1753139696519,0.65000001,196.6,196.58,5.08698748]
[1753139697912,0.65,196.59,196.58,5.08698748]
[1753139698092,1e-08,196.6,196.58,5.08698748]
[1753139698546,0.65000001,196.6,196.58,5.08698748]
[1753139698815,1e-08,196.6,196.59,5.59021727]
[1753139699121,1e-08,196.6,196.59,6.30021727]
[1753139700001,1e-08,196.6,196.59,11.38694599]
[1753139700519,1e-08,196.6,196.59,35.30034723]
[1753139701308,1e-08,196.6,196.59,24.11991269]
[1753139701508,1e-08,196.6,196.59,46.25694599]
[1753139702006,1e-08,196.6,196.59,46.96694599]
[1753139703106,1e-08,196.6,196.59,46.25694599]
[1753139703437,1e-08,196.6,196.59,46.51128085]
[1753139703723,0.65000001,196.6,196.59,26.0]
[1753139703925,0.65000001,196.6,196.57,35.56]
[1753139704101,1e-08,196.6,196.59,26.0]
[1753139704808,0.65000001,196.6,196.59,26.0]
[1753139706515,0.65000001,196.6,196.56,61.59]
[1753139707507,0.65000001,196.6,196.56,26.03]
[1753139707829,5.59021727,196.57,196.56,0.03]
[1753139708505,6.26021727,196.57,196.56,0.03]
[1753139709636,17.75466354,196.57,196.56,0.03]
[1753139716430,0.67,196.57,196.56,0.03]
[1753139717112,6.26021727,196.59,196.56,0.03]
[1753139717312,0.67,196.58,196.56,0.03]
[1753139717926,5.59021728,196.6,196.56,0.03]
[1753139718125,5.59021727,196.58,196.56,0.03]
[1753139718327,6.26021727,196.58,196.56,0.03]
[1753139718533,5.59021727,196.58,196.56,0.03]
[1753139718735,0.67,196.57,196.56,0.03]
[1753139719538,5.08654378,196.6,196.56,0.03]
[1753139719539,6.26021728,196.6,196.56,0.03]
[1753139719747,6.26021728,196.6,196.57,5.59021727]
[1753139719748,1e-08,196.6,196.57,5.59021727]
[1753139720036,1e-08,196.6,196.57,6.30021727]
[1753139720620,1e-08,196.6,196.57,11.38728696]
[1753139721022,1e-08,196.6,196.57,10.67728696]
[1753139721222,1e-08,196.6,196.59,26.0]
[1753139724328,1e-08,196.6,196.59,32.05106358]
[1753139726044,1e-08,196.6,196.59,37.64128085]
[1753139726844,1e-08,196.6,196.59,36.93128085]
[1753139727028,1e-08,196.6,196.59,26.0]
[1753139728838,0.67000001,196.6,196.59,26.0]
[1753139729936,1e-08,196.6,196.59,26.0]
[1753139730146,1e-08,196.6,196.59,26.71]
[1753139730446,6.26021728,196.6,196.57,0.25433486]
[1753139730645,5.59021727,196.58,196.56,0.03]
[1753139730854,5.59021727,196.57,196.56,0.03]
[1753139731044,6.26021727,196.57,196.56,0.03]
[1753139735173,11.34746354,196.57,196.56,0.03]
[1753139735473,11.98336932,196.57,196.56,0.03]
[1753139743170,24.701485,196.57,196.52,0.03]
[1753139743350,5.59021727,196.54,196.52,0.03]
[1753139743550,41.78622011,196.54,196.52,0.03]
[1753139743876,6.22622011,196.54,196.52,0.03]
[1753139744065,5.59021727,196.54,196.52,0.03]
[1753139745276,41.15021727,196.55,196.52,0.03]
[1753139745479,5.59021727,196.55,196.53,0.72]
[1753139745647,5.59021727,196.56,196.53,0.72]
[1753139746565,41.15021727,196.58,196.54,0.69]
[1753139746764,41.15021727,196.58,196.53,5.62021727]
[1753139746970,41.15021727,196.58,196.55,0.69]
[1753139747282,35.56,196.58,196.55,5.77773235]
[1753139747457,0.63584109,196.59,196.56,0.69]
[1753139747653,1e-08,196.6,196.57,0.69]
[1753139747888,1e-08,196.6,196.56,5.59021727]
[1753139748189,1e-08,196.6,196.58,0.69]
[1753139750685,1e-08,196.6,196.58,5.7769262]
[1753139751060,6.25021727,196.59,196.53,0.03]
[1753139751359,5.59021727,196.54,196.53,0.03]
[1753139752352,6.25021727,196.54,196.53,0.03]
[1753139753982,5.59021727,196.54,196.53,0.03]
[1753139754557,0.63593813,196.56,196.53,0.03]
[1753139754784,5.59021727,196.54,196.53,0.03]
[1753139756371,6.25021727,196.54,196.53,0.03]
[1753139757587,5.59021727,196.54,196.53,0.03]
[1753139757986,1e-08,196.6,196.56,26.0]
[1753139758177,1e-08,196.6,196.56,26.69]
[1753139758178,5.59021728,196.6,196.56,26.69]
[1753139758489,5.59021727,196.59,196.56,26.69]
[1753139759073,5.59021727,196.59,196.56,26.0]
[1753139759485,0.06,196.58,196.56,26.0]
[1753139760272,0.06,196.58,196.56,26.69]
[1753139760669,0.06,196.58,196.53,5.62021727]
[1753139760670,6.25021727,196.57,196.53,0.03]
[1753139760870,5.59021727,196.54,196.53,0.03]
[1753139761473,6.25021727,196.54,196.53,0.03]
[1753139761675,6.25021727,196.54,196.52,0.03]
[1753139761881,12.47646975,196.53,196.51,0.03]
[1753139762090,68.61365911,196.52,196.49,0.03]
[1753139762268,11.18043454,196.5,196.49,0.03]
[1753139762675,11.84043454,196.5,196.49,0.03]
[1753139764077,16.92949306,196.5,196.49,0.03]
[1753139767084,16.92949306,196.5,196.47,0.03]
[1753139767287,5.59021727,196.48,196.47,0.03]
[1753139767492,41.17021727,196.48,196.47,0.03]
[1753139767798,46.91979381,196.48,196.47,0.03]
[1753139769998,47.55599087,196.48,196.47,0.03]
[1753139770507,50.13907129,196.48,196.47,0.03]
[1753139778319,46.25979381,196.48,196.47,0.03]
[1753139778711,46.97979381,196.48,196.47,0.03]
[1753139779916,47.61599087,196.48,196.47,0.03]
[1753139781200,64.40067484,196.48,196.45,0.03]
[1753139781398,5.59021727,196.46,196.45,0.03]
[1753139781704,41.8064791,196.46,196.45,0.03]
[1753139781889,42.5264791,196.46,196.45,0.03]
[1753139783219,47.61657377,196.46,196.45,0.03]
[1753139784119,42.78468397,196.4,196.39,0.03]
[1753139784324,16.78468397,196.39,196.3,0.67]
[1753139784493,36.21652103,196.38,196.3,0.67]
[1753139784692,0.72,196.37,196.3,0.67]
[1753139784999,5.59021727,196.31,196.3,0.67]
[1753139786596,41.17021727,196.32,196.3,0.67]
[1753139786920,0.63645621,196.4,196.31,31.59021727]
[1753139787210,5.59021727,196.38,196.33,5.09342105]
[1753139787418,5.59021727,196.38,196.34,0.67]
[1753139787620,0.63645621,196.4,196.35,5.59021727]
[1753139787925,0.63622944,196.47,196.39,26.0]
[1753139788104,5.59021727,196.43,196.4,0.67]
[1753139788419,5.59021727,196.43,196.41,0.67]
[1753139788633,5.59021727,196.43,196.42,0.67]
[1753139788913,35.58,196.44,196.42,0.67]
[1753139789117,5.59021727,196.43,196.42,0.67]
[1753139789614,41.17021727,196.44,196.42,0.67]
[1753139792122,5.59021727,196.43,196.39,0.67]
[1753139792417,5.59021727,196.4,196.38,0.03]
[1753139792619,5.59021727,196.41,196.38,0.03]
[1753139792797,5.59021727,196.41,196.38,0.7]
[1753139793001,41.17021727,196.41,196.38,0.7]
[1753139794612,41.17021727,196.41,196.38,5.12215854]
[1753139794811,35.58,196.41,196.39,0.67]
[1753139795411,5.59021727,196.4,196.38,0.03]
[1753139795719,41.80670588,196.39,196.38,0.03]
[1753139796021,47.61861483,196.39,196.38,0.03]
[1753139798237,42.52670588,196.39,196.38,0.03]
[1753139798527,41.17021727,196.39,196.38,0.03]
[1753139799398,1.3163914,196.42,196.38,0.03]
[1753139799621,0.63629422,196.45,196.41,5.59021727]
[1753139799826,5.59021727,196.48,196.42,6.25021727]
[1753139800000,36.23622944,196.47,196.42,6.25021727]
[1753139800199,36.23622944,196.47,196.43,0.66]
[1753139800200,41.82644671,196.47,196.43,0.66]
[1753139800618,36.23622944,196.47,196.43,0.66]
[1753139800925,35.6,196.47,196.44,6.25021727]
[1753139801224,35.6,196.47,196.45,0.66]
[1753139802100,35.6,196.47,196.46,0.66]
[1753139802606,5.59021727,196.49,196.46,0.66]
[1753139802807,35.58,196.48,196.46,0.66]
[1753139803407,44.5282232,196.48,196.43,40.03901952]
[1753139803655,44.5282232,196.48,196.44,0.66]
[1753139803817,35.58,196.48,196.44,0.66]
[1753139804428,35.58,196.48,196.45,14.69857697]
[1753139804806,35.58,196.48,196.45,5.75035377]
[1753139805007,35.58,196.48,196.45,5.09035377]
[1753139805204,44.5282232,196.48,196.44,5.09058121]
[1753139805630,44.5282232,196.48,196.43,31.7507981]
[1753139805833,8.9482232,196.47,196.43,31.7507981]
[1753139806133,9.58445264,196.47,196.43,31.7507981]
[1753139806699,35.58,196.46,196.43,31.0907981]
[1753139808116,44.5282232,196.46,196.42,5.09113124]
[1753139808826,44.5282232,196.46,196.42,5.75113124]
[1753139810327,44.5282232,196.46,196.42,0.66]
[1753139810530,45.2082232,196.46,196.41,5.09133479]
[1753139810832,8.9482232,196.42,196.38,1.6848]
[1753139811030,8.9482232,196.39,196.38,0.03]
[1753139811216,44.5282232,196.39,196.38,0.03]
[1753139813933,35.58,196.39,196.38,0.03]
[1753139814231,0.63619706,196.48,196.43,26.0]
[1753139814430,9.6882232,196.5,196.44,9.6082232]
[1753139814625,8.9482232,196.48,196.41,26.0]
[1753139814830,8.9482232,196.44,196.43,26.0]
[1753139815520,44.5482232,196.45,196.43,26.0]
[1753139816136,35.6,196.45,196.43,31.09086478]
[1753139816320,35.6,196.45,196.43,26.0]
[1753139816638,45.2282232,196.45,196.42,5.09108138]
[1753139817026,35.6,196.45,196.42,5.09108138]
[1753139817223,45.86451742,196.45,196.41,5.09131398]
[1753139817433,44.5482232,196.45,196.41,5.75131398]
[1753139818430,45.2282232,196.45,196.41,5.75131398]
[1753139818740,45.2282232,196.45,196.41,5.09131398]
[1753139819039,35.6,196.45,196.41,5.09131398]
[1753139819343,35.6,196.45,196.41,5.75131398]
[1753139819826,0.68,196.44,196.41,5.09131398]
[1753139820141,8.9482232,196.42,196.38,0.03]
[1753139820345,8.9482232,196.4,196.38,0.03]
[1753139821339,45.844647,196.41,196.38,0.03]
[1753139821818,0.68,196.4,196.38,0.03]
[1753139822014,44.5482232,196.39,196.38,0.03]
[1753139822251,45.18471181,196.39,196.38,0.03]
[1753139822545,45.86471181,196.39,196.38,0.03]
[1753139823123,42.51536835,196.39,196.38,0.03]
[1753139824420,47.6072773,196.39,196.38,0.03]
[1753139824624,42.51536835,196.39,196.38,0.03]
[1753139825025,47.6072773,196.39,196.38,0.03]
[1753139826148,36.23648861,196.39,196.38,0.03]
[1753139826444,36.91648861,196.39,196.38,0.03]
[1753139826739,0.68,196.48,196.38,7.90817974]
[1753139826933,41.85510918,196.47,196.42,5.59887974]
[1753139827133,41.85510918,196.47,196.41,5.59887974]
[1753139827339,0.68,196.46,196.41,5.59887974]
[1753139827538,35.62,196.45,196.41,5.59887974]
[1753139827928,35.62,196.45,196.42,6.25887974]
[1753139828327,0.63616469,196.49,196.44,5.59887974]
[1753139828528,0.06,196.5,196.46,5.59887974]
[1753139828845,0.06,196.5,196.48,5.59887974]
[1753139829217,0.06,196.5,196.49,9.65414873]
[1753139829833,1e-08,196.5,196.49,34.5022327]
[1753139830032,1e-08,196.52,196.51,42.78468397]
[1753139830234,0.06,196.56,196.54,26.0]
[1753139830432,0.06,196.56,196.55,9.19876826]
[1753139830633,0.06,196.56,196.55,9.90876826]
[1753139831925,0.06,196.56,196.55,26.69345223]
[1753139832125,0.06,196.56,196.55,62.33345223]
[1753139832342,0.06,196.56,196.55,67.42121615]
[1753139834021,0.06,196.56,196.55,22.83706742]
[1753139834222,0.06,196.56,196.55,67.40121615]
[1753139837434,0.06,196.56,196.55,31.78121615]
[1753139837642,0.06,196.56,196.55,67.40121615]
[1753139838729,0.06,196.56,196.55,31.78121615]
[1753139838931,0.06,196.56,196.55,67.38121615]
[1753139840340,0.78,196.56,196.51,8.94414873]
[1753139840540,0.06,196.56,196.55,8.94414873]
[1753139840873,9.72414873,196.56,196.5,5.08905852]
[1753139841184,0.78,196.56,196.52,8.94414873]
[1753139841334,0.06,196.56,196.54,8.94414873]
[1753139841530,0.06,196.56,196.55,8.94414873]
[1753139841751,0.06,196.56,196.54,26.0]
[1753139841951,0.72,196.55,196.5,14.03320725]
[1753139842163,0.06,196.56,196.52,34.94414873]
[1753139842343,0.06,196.56,196.53,14.03243041]
[1753139843139,0.78,196.56,196.52,31.08850974]
[1753139843833,0.72,196.55,196.52,31.08850974]
[1753139845064,0.72,196.55,196.52,26.0]
[1753139845373,0.72,196.54,196.52,26.0]
[1753139846443,9.64008686,196.56,196.52,26.0]
[1753139846654,9.72414873,196.56,196.52,31.08846772]
[1753139846862,0.06,196.56,196.52,40.74261645]
[1753139847250,0.78,196.56,196.52,31.08846772]
[1753139847564,0.72,196.55,196.52,26.0]
[1753139847752,0.72,196.54,196.52,26.0]
[1753139848971,14.09171459,196.56,196.52,26.0]
[1753139849169,0.72,196.53,196.49,51.35746358]
[1753139849348,0.72,196.53,196.49,75.69326358]
[1753139850173,8.94414873,196.54,196.49,66.74911485]
[1753139850354,0.72,196.52,196.51,26.0]
[1753139851154,1.35597049,196.55,196.5,34.94414873]
[1753139851352,9.58011922,196.55,196.5,26.0]
[1753139851553,9.66414873,196.54,196.5,26.0]
[1753139851752,8.94414873,196.54,196.51,26.0]
[1753139852073,0.72,196.53,196.51,26.0]
[1753139852766,0.72,196.53,196.5,26.0]
[1753139853365,0.72,196.52,196.5,26.0]
[1753139853968,5.5899066,196.52,196.5,26.0]
[1753139854167,0.72,196.51,196.5,26.0]
[1753139855774,6.3099066,196.53,196.5,26.0]
[1753139855955,0.72,196.52,196.5,26.0]
[1753139856974,0.72,196.51,196.5,26.0]
[1753139857984,6.94600654,196.51,196.47,0.03]
[1753139858281,6.3099066,196.5,196.47,0.03]
[1753139858785,0.72,196.49,196.47,0.03]
[1753139861169,6.22603891,196.5,196.47,0.03]
[1753139861767,0.72,196.54,196.49,31.5899066]
[1753139861981,7.00584473,196.56,196.5,6.2499066]
[1753139862884,7.00584473,196.56,196.51,10.67847945]
[1753139863060,1.41593813,196.56,196.51,11.33847945]
[1753139863477,0.72,196.55,196.51,5.5899066]
[1753139863789,1.35600284,196.54,196.5,10.67892803]
[1753139863976,0.72,196.53,196.5,5.08902143]
[1753139867770,6.94587709,196.55,196.5,5.08902143]
[1753139867969,0.72,196.54,196.5,5.08902143]
[1753139869894,0.63597049,196.55,196.5,5.74902143]
[1753139870086,0.63597049,196.55,196.51,0.66]
[1753139870389,0.63597049,196.55,196.52,0.66]
[1753139870590,0.69593813,196.56,196.52,0.66]
[1753139870897,0.06,196.56,196.54,26.0]
[1753139871277,0.06,196.56,196.55,6.2499066]
[1753139871587,0.06,196.56,196.55,5.5899066]
[1753139872383,0.06,196.56,196.55,10.67767052]
[1753139873580,0.06,196.56,196.55,11.33767052]
[1753139873776,0.06,196.56,196.55,11.59226417]
[1753139873976,0.06,196.56,196.55,47.19226417]
[1753139876292,0.06,196.56,196.55,46.27767052]
[1753139877085,0.06,196.56,196.55,40.68776392]
[1753139877288,0.06,196.56,196.55,46.93767052]
[1753139877879,0.06,196.56,196.55,46.27767052]
[1753139878590,0.06,196.56,196.55,10.67767052]
[1753139880098,0.06,196.56,196.55,5.08776392]
[1753139881000,0.06,196.56,196.54,36.67787431]
[1753139881368,0.78,196.56,196.54,31.08796771]
[1753139881574,0.72,196.55,196.52,35.56]
[1753139881978,0.06,196.56,196.53,5.08826869]
[1753139882181,0.06,196.56,196.55,5.5899066]
[1753139882587,0.78,196.56,196.53,5.08826869]
[1753139882800,0.06,196.56,196.53,5.08826869]
[1753139883006,0.72,196.55,196.53,5.08826869]
[1753139883299,0.06,196.56,196.53,5.08826869]
[1753139883704,0.78,196.56,196.53,10.67817529]
[1753139884077,0.06,196.56,196.53,10.67817529]
[1753139884493,0.78,196.56,196.53,5.08826869]
[1753139884695,0.78,196.56,196.48,31.08490743]
[1753139884696,5.5899066,196.54,196.46,0.03]
[1753139884894,5.5899066,196.5,196.46,5.12002526]
[1753139885092,6.3099066,196.49,196.46,5.12002526]
[1753139885293,0.72,196.49,196.46,26.03]
[1753139885500,6.3099066,196.49,196.46,5.1199483]
[1753139886007,16.78468397,196.55,196.47,5.11981544]
[1753139886310,6.3099066,196.51,196.47,5.11981544]
[1753139887213,5.5899066,196.52,196.47,5.11981544]
[1753139887405,6.3099066,196.53,196.48,0.66]
[1753139887904,6.94597417,196.52,196.48,0.66]
[1753139888108,0.72,196.51,196.47,5.11981544]
[1753139888316,0.72,196.5,196.47,5.11981544]
[1753139888612,0.72,196.49,196.47,0.03]
[1753139889797,0.72,196.48,196.47,0.03]
[1753139890497,0.72,196.49,196.47,0.03]
[1753139891506,6.94607129,196.49,196.47,0.03]
[1753139892015,6.3099066,196.48,196.47,0.03]
[1753139892502,0.72,196.48,196.47,0.03]
[1753139892909,6.3099066,196.48,196.47,0.03]
[1753139893306,6.3099066,196.48,196.46,0.03]
[1753139893513,12.03597163,196.47,196.46,0.03]
[1753139894504,44.102491,196.47,196.42,0.03]
[1753139894700,5.5899066,196.43,196.42,0.03]
[1753139894898,5.5899066,196.43,196.39,0.03]
[1753139894899,41.1699066,196.43,196.39,0.03]
[1753139895120,5.5899066,196.4,196.39,0.03]
[1753139895311,5.5899066,196.4,196.38,0.03]
[1753139895612,12.03830416,196.39,196.38,0.03]
[1753139897502,28.82298813,196.39,196.38,0.03]
[1753139897823,12.03830416,196.39,196.38,0.03]
[1753139902006,12.03830416,196.39,196.38,1e-08]
[1753139902007,28.82298813,196.39,196.38,1e-08]
[1753139902400,12.03830416,196.39,196.38,1e-08]
[1753139902600,6.44839756,196.39,196.38,1e-08]
[1753139902824,12.03830416,196.39,196.38,1e-08]
[1753139903024,6.94639521,196.39,196.38,1e-08]
[1753139903303,6.22636281,196.4,196.38,1e-08]
[1753139903518,11.31783964,196.41,196.38,1e-08]
[1753139903910,1.3564238,196.41,196.38,1e-08]
[1753139904105,0.6363914,196.42,196.38,0.72000001]
[1753139904913,6.226298,196.42,196.38,0.72000001]
[1753139905311,35.58,196.43,196.39,6.3099066]
[1753139905519,6.22623321,196.44,196.39,0.72]
[1753139905730,6.94623321,196.44,196.39,0.72]
[1753139905913,6.94623321,196.44,196.39,6.3099066]
[1753139906108,5.5899066,196.41,196.38,1e-08]
[1753139906315,5.5899066,196.42,196.38,1e-08]
[1753139906515,0.6364238,196.41,196.38,1e-08]
[1753139906831,0.6364238,196.41,196.38,0.72000001]
[1753139907222,0.636359,196.43,196.39,6.3099066]
[1753139907535,0.636359,196.43,196.4,0.72]
[1753139907937,1.356359,196.43,196.38,5.58990661]
[1753139908117,0.72,196.42,196.38,5.58990661]
[1753139908705,0.636359,196.43,196.38,11.4020077]
[1753139908912,0.636359,196.43,196.38,10.6820077]
[1753139909216,0.636359,196.43,196.39,0.72]
[1753139910132,0.72,196.42,196.38,5.58990661]
[1753139910535,0.636359,196.43,196.39,0.72]
[1753139910925,6.22623321,196.44,196.39,0.72]
[1753139911237,6.94623321,196.44,196.39,0.72]
[1753139911530,35.64,196.45,196.41,5.5899066]
[1753139911833,35.64,196.45,196.42,6.3099066]
[1753139912019,35.64,196.45,196.42,5.5899066]
[1753139912222,1.35619706,196.48,196.43,6.3099066]
[1753139912430,0.63619706,196.48,196.45,5.5899066]
[1753139912623,1.35619706,196.48,196.44,5.5899066]
[1753139912811,0.63616469,196.49,196.45,0.72]
[1753139913007,0.69613231,196.5,196.46,0.72]
[1753139913633,0.69613231,196.5,196.47,0.72]
[1753139913852,0.69613231,196.5,196.46,0.72]
[1753139914009,5.78519224,196.5,196.46,0.72]
[1753139914325,6.50519224,196.5,196.45,5.5899066]
[1753139914516,6.50519224,196.5,196.45,6.3099066]
[1753139914937,1.41613231,196.5,196.45,10.68019197]
[1753139915234,1.41613231,196.5,196.46,0.72]
[1753139916332,0.69613231,196.5,196.46,5.81007856]
[1753139916518,0.06,196.5,196.48,5.5899066]
[1753139916719,0.06,196.5,196.47,0.72]
[1753139916919,0.06,196.5,196.46,10.67998516]
[1753139917237,5.5899066,196.47,196.38,1e-08]
[1753139917445,5.5899066,196.4,196.38,1e-08]
[1753139918017,5.5899066,196.41,196.38,1e-08]
[1753139918347,6.2699066,196.41,196.38,1e-08]
[1753139919048,5.5899066,196.39,196.38,1e-08]
[1753139919542,46.36133467,196.41,196.38,1e-08]
[1753139919741,0.63645621,196.4,196.38,1e-08]
[1753139919945,6.90636281,196.4,196.38,1e-08]
[1753139920148,0.68,196.39,196.38,1e-08]
[1753139921366,94.0899066,196.45,196.38,5.58990661]
[1753139921519,0.63616469,196.49,196.44,5.5899066]
[1753139921718,0.63616469,196.49,196.44,6.2899066]
[1753139922622,0.69613231,196.5,196.45,6.2899066]
[1753139922829,0.06,196.5,196.47,5.5899066]
[1753139923042,0.06,196.5,196.47,6.2899066]
[1753139923833,0.06,196.5,196.47,5.5899066]
[1753139925133,0.06,196.5,196.46,8.94592777]
[1753139925333,0.06,196.5,196.46,9.64592777]
[1753139925933,0.06,196.5,196.47,8.94592777]
[1753139926142,0.06,196.5,196.46,9.64592777]
[1753139928321,0.06,196.5,196.48,8.94592777]
[1753139928727,0.06,196.5,196.48,9.64592777]
[1753139929042,0.06,196.5,196.49,9.64592777]
[1753139931526,0.06,196.5,196.49,14.73524529]
[1753139933149,0.06,196.5,196.49,9.64592777]
[1753139934349,0.06,196.5,196.49,14.73524529]
[1753139936055,0.06,196.5,196.49,16.25614529]
[1753139938838,0.06,196.5,196.49,39.11012926]
[1753139939035,0.06,196.54,196.52,26.0]
[1753139939239,0.06,196.54,196.53,9.20067674]
[1753139939750,0.06,196.54,196.53,9.90067674]
[1753139940756,0.06,196.54,196.53,14.98895842]
[1753139944951,0.06,196.54,196.53,26.0]
[1753139945355,0.74,196.54,196.53,26.0]
[1753139945654,0.06,196.54,196.53,32.28834751]
[1753139946239,0.06,196.54,196.53,37.37662919]
[1753139946640,0.06,196.54,196.53,54.16131316]
[1753139947955,0.06,196.56,196.53,54.16131316]
[1753139948160,0.06,196.56,196.55,27.4607954]
[1753139948362,0.06,196.58,196.55,63.0807954]
[1753139948537,0.06,196.58,196.57,22.37303148]
[1753139948743,0.06,196.58,196.56,36.53452893]